bitfinex-derivatives/quotes_SOLF0:USTF0_20241215
["timestamp","ask_amount","ask_price","bid_price","bid_amount"]
[1734274800781,2.28,221.55,221.5,2.2581]
[1734274800981,2.28,221.54,221.5,2.2581]
[1734274801186,2.28,221.53,221.5,2.2581]
[1734274801388,2.28,221.52,221.5,2.2581]
[1734274803381,2.28,221.52,221.51,2.2581]
[1734274803580,2.28,221.52,221.45,5.50189131]
[1734274803783,2.28,221.52,221.46,5.17280612]
[1734274803982,2.2575,221.57,221.52,2.258]
[1734274804189,2.28,221.56,221.45,5.50189131]
[1734274804389,2.28,221.55,221.46,5.17381095]
[1734274804589,2.28,221.54,221.45,5.50189131]
[1734274804788,2.28,221.53,221.46,3.24611606]
[1734274804986,2.28,221.52,221.45,5.50189131]
[1734274805187,2.28,221.51,221.46,3.24611623]
[1734274805490,2.28,221.5,221.47,2.2585]
[1734274805689,2.28,221.49,221.47,2.2585]
[1734274806083,2.28,221.5,221.45,5.50189131]
[1734274806286,2.28,221.51,221.46,5.17480492]
[1734274806487,2.28,221.51,221.45,5.50189131]
[1734274806792,2.28,221.51,221.46,5.17488908]
[1734274806988,2.28,221.51,221.45,5.50189131]
[1734274807289,1.5487,221.62,221.46,5.17483285]
[1734274807495,1.5487,221.62,221.47,5.17483285]
[1734274807693,2.28,221.61,221.48,5.17483285]
[1734274807889,2.28,221.61,221.49,3.24626885]
[1734274808191,2.2573,221.59,221.53,2.2578]
[1734274808497,2.28,221.58,221.53,2.2578]
[1734274809584,4.5375,221.58,221.53,2.2578]
[1734274809784,2.28,221.58,221.51,2.258]
[1734274810191,2.2576,221.56,221.51,2.258]
[1734274810390,2.2576,221.56,221.52,2.258]
[1734274810592,2.28,221.58,221.52,2.258]
[1734274810794,4.5375,221.58,221.45,5.50189131]
[1734274811093,4.5375,221.58,221.46,1.92895912]
[1734274811298,2.28,221.57,221.47,5.17584367]
[1734274811594,2.28,221.57,221.5,2.2581]
[1734274811794,2.28,221.57,221.48,5.17584367]
[1734274811795,2.28,221.57,221.45,5.50189131]
[1734274811994,2.28,221.57,221.46,5.1760017]
[1734274812298,2.28,221.56,221.51,2.258]
[1734274813297,2.28,221.56,221.39,2.9451]
[1734274813489,2.28,221.56,221.4,7.45817853]
[1734274813794,2.28,221.56,221.41,5.17817853]
[1734274813997,2.28,221.56,221.42,5.17817853]
[1734274814193,2.28,221.56,221.43,5.17817853]
[1734274814500,2.2579,221.53,221.44,5.17817853]
[1734274814694,2.2579,221.53,221.45,3.24864721]
[1734274814900,2.28,221.56,221.46,3.24864721]
[1734274815099,2.258,221.52,221.47,2.2585]
[1734274815396,2.28,221.51,221.4,2.28]
[1734274815597,2.28,221.51,221.48,5.46067458]
[1734274816098,4.5382,221.51,221.46,2.2586]
[1734274816997,2.28,221.5,221.46,2.2586]
[1734274817190,2.28,221.5,221.39,2.9451]
[1734274817389,2.28,221.5,221.4,5.18151526]
[1734274817594,2.28,221.5,221.41,3.25190539]
[1734274817790,2.2587,221.46,221.38,2.2594]
[1734274818103,2.2587,221.46,221.33,2.8044]
[1734274818104,2.28,221.45,221.39,5.18406381]
[1734274818398,2.28,221.44,221.39,1.93185796]
[1734274818700,2.28,221.43,221.39,1.93185796]
[1734274818898,2.28,221.42,221.39,4.19115796]
[1734274819098,2.28,221.42,221.39,1.93185796]
[1734274820099,2.28,221.41,221.39,1.93185796]
[1734274820301,2.28,221.4,221.39,1.93185796]
[1734274820499,2.28,221.4,221.35,5.35088919]
[1734274820998,4.5392,221.4,221.35,7.61058919]
[1734274821193,2.28,221.4,221.35,7.61058919]
[1734274821497,2.28,221.4,221.28,1.4565]
[1734274821697,2.28,221.4,221.31,5.29457816]
[1734274821903,2.28,221.4,221.32,3.24885832]
[1734274822202,2.28,221.4,221.24,2.8714]
[1734274822404,2.26,221.33,221.27,2.2605]
[1734274822604,2.3,221.32,221.28,3.24771451]
[1734274822905,2.3,221.32,221.24,1.4242]
[1734274823202,2.3,221.32,221.27,5.43023917]
[1734274823898,2.3,221.32,221.27,7.69073917]
[1734274824297,2.3,221.32,221.27,5.43023917]
[1734274824502,2.3,221.31,221.27,5.43023917]
[1734274825405,2.3,221.31,221.3,2.2603]
[1734274826730,2.3,221.48,221.28,2.3]
[1734274827016,2.3,221.47,221.44,2.2588]
[1734274827211,2.3,221.46,221.44,2.2588]
[1734274827409,2.3,221.45,221.31,3.23343828]
[1734274827612,2.3,221.44,221.42,2.2589]
[1734274829118,2.3,221.44,221.39,2.2593]
[1734274829518,2.3,221.44,221.34,1.4546]
[1734274829721,2.3,221.44,221.39,2.2593]
[1734274830111,2.3,221.44,221.34,1.4546]
[1734274830421,2.3,221.44,221.42,2.259]
[1734274834928,2.3,221.46,221.4,5.46461662]
[1734274836632,2.3,221.46,221.45,2.2586]
[1734274837219,2.3,221.47,221.45,2.2586]
[1734274837421,2.3,221.47,221.43,2.2588]
[1734274837824,4.3834,221.51,221.43,2.2588]
[1734274838027,2.3,221.5,221.43,2.2588]
[1734274838424,4.5582,221.5,221.43,2.2588]
[1734274838924,4.5582,221.5,221.4,5.46461662]
[1734274839128,4.5582,221.5,221.44,2.2588]
[1734274839347,2.3,221.5,221.4,5.46461662]
[1734274840528,2.3,221.5,221.34,1.4546]
[1734274840931,2.8748,221.51,221.34,1.4546]
[1734274841227,2.3,221.5,221.35,5.15360536]
[1734274841429,2.3,221.5,221.36,3.23303803]
[1734274841618,2.3,221.5,221.34,1.4546]
[1734274841818,2.3,221.5,221.35,5.15314141]
[1734274842024,2.3,221.5,221.36,3.23261164]
[1734274842224,2.3,221.5,221.38,5.41382168]
[1734274843425,2.2586,221.46,221.41,2.2591]
[1734274843729,2.3,221.45,221.41,2.2591]
[1734274844530,2.3,221.45,221.42,2.259]
[1734274844928,2.8748,221.51,221.38,5.41382168]
[1734274845124,2.8748,221.51,221.39,3.23263205]
[1734274845125,2.3,221.5,221.39,3.23263205]
[1734274845328,2.3,221.5,221.38,5.41382168]
[1734274845635,2.3,221.5,221.46,2.2586]
[1734274846132,2.2579,221.53,221.47,2.2585]
[1734274846433,1.4712,221.55,221.38,5.41382168]
[1734274846729,2.3,221.54,221.39,5.1513256]
[1734274847034,2.3,221.53,221.4,7.4513256]
[1734274847230,2.3,221.53,221.41,5.1513256]
[1734274847425,2.3,221.53,221.5,2.2581]
[1734274848528,2.3,221.53,221.41,1.408]
[1734274848529,2.9847,221.6,221.41,1.408]
[1734274848727,5.242,221.6,221.44,1.4921]
[1734274848933,2.3,221.59,221.45,5.53231077]
[1734274849126,2.3,221.59,221.46,5.15199216]
[1734274849328,2.3,221.59,221.45,2.3]
[1734274849531,2.3,221.59,221.46,5.15088408]
[1734274849732,2.3,221.59,221.47,3.23119447]
[1734274849928,2.3,221.58,221.45,2.3]
[1734274850235,2.3,221.58,221.46,5.15223243]
[1734274850533,2.3,221.58,221.53,2.2578]
[1734274852025,2.3,221.58,221.54,2.2578]
[1734274855336,2.3,221.58,221.46,3.23329462]
[1734274855532,2.2575,221.57,221.52,2.258]
[1734274855840,2.3,221.58,221.52,2.258]
[1734274856030,2.3,221.58,221.45,3.23393877]
[1734274856235,2.3,221.58,221.44,1.4921]
[1734274857235,2.3,221.58,221.49,5.408963]
[1734274857440,2.2578,221.55,221.5,2.2582]
[1734274857834,2.3,221.54,221.5,2.2582]
[1734274861738,2.3,221.54,221.44,1.4921]
[1734274861944,2.3,221.54,221.33,2.3]
[1734274862146,2.3,221.54,221.37,6.32422454]
[1734274862341,2.2582,221.51,221.45,2.2586]
[1734274863045,2.2582,221.51,221.38,1.92228456]
[1734274863245,2.2582,221.51,221.47,2.2585]
[1734274863440,2.2582,221.51,221.4,3.23542154]
[1734274863743,2.2582,221.5,221.45,2.2586]
[1734274863942,2.3,221.49,221.43,5.28840318]
[1734274864138,2.3,221.48,221.45,2.2587]
[1734274865144,2.3,221.48,221.47,2.2585]
[1734274865941,2.9847,221.6,221.43,5.28840318]
[1734274866141,2.3,221.59,221.44,5.15333213]
[1734274866451,2.2575,221.57,221.44,1.5177]
[1734274866948,2.2575,221.57,221.45,3.23292443]
[1734274867149,2.2575,221.57,221.44,1.5177]
[1734274867449,2.2575,221.57,221.45,5.15269359]
[1734274867640,2.2575,221.57,221.44,1.5177]
[1734274867840,2.2575,221.57,221.45,3.23325729]
[1734274868042,2.2575,221.57,221.44,1.5177]
[1734274868246,2.2575,221.57,221.52,2.258]
[1734274868748,2.2576,221.56,221.5,2.2581]
[1734274868946,2.2576,221.56,221.44,1.5177]
[1734274869244,2.3,221.59,221.45,5.15659345]
[1734274869444,2.3,221.59,221.43,5.28840318]
[1734274869647,2.3,221.59,221.37,1.5408]
[1734274869849,2.3,221.59,221.38,5.16622861]
[1734274870148,2.3,221.59,221.37,1.5408]
[1734274870149,2.2587,221.46,221.4,2.2592]
[1734274870344,2.3,221.45,221.4,2.2592]
[1734274870751,2.3,221.45,221.34,1.5466]
[1734274870941,2.3,221.45,221.35,5.17280036]
[1734274871252,1.511,221.44,221.31,1.4809]
[1734274871448,1.511,221.44,221.32,5.17849851]
[1734274871449,4.3377,221.44,221.32,5.17849851]
[1734274871642,4.3377,221.44,221.34,5.48009844]
[1734274872252,2.2592,221.4,221.34,5.48009844]
[1734274872445,2.3,221.39,221.34,5.48009844]
[1734274872949,2.3,221.39,221.34,7.73989844]
[1734274874144,2.3,221.39,221.31,1.4809]
[1734274874349,2.3,221.39,221.32,5.17605608]
[1734274874548,2.3,221.39,221.26,1.5446]
[1734274874745,2.3,221.39,221.29,3.24724085]
[1734274874949,2.3,221.39,221.26,1.5446]
[1734274875848,2.2597,221.36,221.3,2.2603]
[1734274876353,2.2597,221.36,221.26,1.5446]
[1734274877146,56.0177,221.44,221.3,2.2602]
[1734274877351,2.3,221.43,221.29,5.36609838]
[1734274877548,56.0177,221.44,221.29,5.36609838]
[1734274877747,2.3,221.43,221.29,5.36609838]
[1734274877954,2.2593,221.39,221.33,2.2599]
[1734274878256,2.3,221.38,221.29,5.36609838]
[1734274878457,2.2596,221.37,221.31,2.2601]
[1734274879248,2.2596,221.37,221.29,5.36609838]
[1734274879456,2.2596,221.37,221.3,2.2602]
[1734274879753,2.2596,221.37,221.29,5.36609838]
[1734274879950,2.3,221.38,221.29,5.36609838]
[1734274880858,56.0177,221.44,221.29,5.36609838]
[1734274881051,2.3,221.43,221.29,5.36609838]
[1734274881247,2.3,221.42,221.37,2.2595]
[1734274881452,2.3,221.42,221.3,3.23663342]
[1734274881751,2.3,221.42,221.29,5.36609838]
[1734274882050,2.3,221.42,221.3,3.23637702]
[1734274882246,2.3,221.42,221.29,5.36609838]
[1734274882447,2.3,221.42,221.3,3.23590175]
[1734274882653,2.3,221.42,221.29,5.36609838]
[1734274883355,56.0177,221.44,221.29,5.36609838]
[1734274883555,2.2592,221.4,221.33,2.2599]
[1734274883857,56.0177,221.44,221.33,2.2599]
[1734274884259,2.28,221.43,221.33,2.2599]
[1734274884553,2.2594,221.39,221.33,2.2599]
[1734274884749,2.28,221.42,221.29,5.36609838]
[1734274884952,2.2595,221.37,221.32,2.26]
[1734274885152,2.28,221.36,221.32,2.26]
[1734274885355,2.28,221.35,221.32,2.26]
[1734274885679,2.28,221.34,221.29,5.36609838]
[1734274885863,2.28,221.33,221.31,2.2601]
[1734274886160,2.28,221.32,221.31,2.2601]
[1734274888458,2.2592,221.41,221.34,2.2598]
[1734274888958,2.2591,221.41,221.34,2.2598]
[1734274889161,56.0177,221.44,221.29,5.36609838]
[1734274889764,2.2593,221.4,221.31,2.2601]
[1734274889960,56.0177,221.44,221.31,2.2601]
[1734274890155,2.28,221.43,221.31,2.2601]
[1734274891664,2.28,221.42,221.28,5.53818333]
[1734274892055,2.2595,221.38,221.28,5.53818333]
[1734274892760,2.28,221.37,221.33,2.2599]
[1734274892959,2.28,221.36,221.33,2.2599]
[1734274893264,2.28,221.35,221.33,2.2599]
[1734274893466,2.28,221.34,221.33,2.2599]
[1734274894262,2.28,221.34,221.28,5.53818333]
[1734274894462,2.28,221.34,221.32,2.26]
[1734274895256,2.28,221.34,221.3,2.2602]
[1734274896263,2.28,221.34,221.28,5.53818333]
[1734274896564,2.28,221.34,221.28,7.79858333]
[1734274896755,2.28,221.34,221.28,5.53818333]
[1734274897161,2.2602,221.31,221.25,2.2607]
[1734274897361,2.28,221.34,221.21,2.9613]
[1734274897666,2.28,221.34,221.21,1.4132]
[1734274897862,1.5495,221.33,221.21,1.4132]
[1734274898370,2.9981,221.33,221.21,1.4132]
[1734274898659,2.2604,221.29,221.23,2.261]
[1734274898865,2.28,221.28,221.23,7.74580664]
[1734274899062,2.28,221.28,221.21,1.4132]
[1734274899267,4.5406,221.28,221.21,1.4132]
[1734274899658,4.5406,221.28,221.2,2.2612]
[1734274899871,4.5406,221.28,221.17,1.446]
[1734274900564,2.2607,221.26,221.19,2.2613]
[1734274900965,2.2607,221.26,221.17,1.446]
[1734274901268,2.2607,221.26,221.21,2.2612]
[1734274901761,2.2607,221.26,221.2,2.2613]
[1734274902166,2.2607,221.26,221.2,7.60979588]
[1734274903566,2.28,221.28,221.21,2.2612]
[1734274903766,2.2606,221.27,221.21,2.2612]
[1734274903966,2.28,221.28,221.2,5.34849588]
[1734274905263,2.2609,221.24,221.18,2.2614]
[1734274905471,2.28,221.23,221.15,1.4627]
[1734274905766,4.5411,221.22,221.16,2.2617]
[1734274905962,2.28,221.21,221.16,2.2617]
[1734274907269,2.28,221.21,221.16,5.55475142]
[1734274907865,2.28,221.21,221.18,2.2615]
[1734274910671,2.28,221.21,221.16,5.55475142]
[1734274911175,8.39816989,221.33,221.16,5.55475142]
[1734274911372,2.28,221.32,221.17,1.92412689]
[1734274911566,2.28,221.32,221.18,5.51835086]
[1734274911768,2.28,221.32,221.19,3.23835086]
[1734274911970,2.28,221.32,221.2,5.16247775]
[1734274912273,2.28,221.32,221.21,5.16247775]
[1734274912476,2.28,221.32,221.22,6.62187775]
[1734274912773,2.28,221.32,221.23,5.16247775]
[1734274912971,2.28,221.32,221.24,5.16247775]
[1734274913273,2.22,221.33,221.25,5.16247775]
[1734274913476,2.22,221.34,221.26,6.71287775]
[1734274913674,2.22,221.34,221.27,5.16247775]
[1734274913867,2.22,221.34,221.26,1.5504]
[1734274914168,2.22,221.34,221.27,5.1657927]
[1734274914472,2.22,221.34,221.22,1.4594]
[1734274914672,2.22,221.34,221.23,5.17246564]
[1734274914872,2.22,221.34,221.24,5.17246564]
[1734274915173,2.22,221.34,221.25,5.17246564]
[1734274915473,2.2601,221.32,221.22,1.4594]
[1734274915670,2.22,221.34,221.23,5.17679758]
[1734274915872,2.22,221.34,221.22,1.4594]
[1734274916068,2.22,221.34,221.23,3.24778045]
[1734274916374,2.26,221.33,221.22,1.4594]
[1734274916570,2.26,221.33,221.23,5.17750285]
[1734274916769,2.26,221.33,221.24,5.17750285]
[1734274916970,2.26,221.33,221.25,3.24786366]
[1734274917169,1.4254,221.39,221.22,3.6794]
[1734274917367,2.22,221.38,221.23,5.17679004]
[1734274917572,2.22,221.38,221.24,5.17679004]
[1734274917772,2.2595,221.37,221.28,2.2603]
[1734274917983,2.22,221.38,221.28,2.2603]
[1734274918370,2.2597,221.35,221.29,2.2603]
[1734274918673,2.22,221.38,221.22,3.6794]
[1734274918873,2.22,221.38,221.23,5.17626466]
[1734274919073,2.22,221.38,221.29,2.2602]
[1734274919074,2.2597,221.35,221.29,2.2602]
[1734274919872,2.22,221.38,221.29,2.2602]
[1734274920166,2.22,221.38,221.22,3.6794]
[1734274920371,2.22,221.38,221.23,3.2475458]
[1734274920572,2.22,221.38,221.24,3.2475458]
[1734274920874,2.22,221.38,221.25,5.17685865]
[1734274921071,2.22,221.38,221.26,5.17685865]
[1734274921270,2.22,221.38,221.27,3.2475458]
[1734274921465,2.22,221.38,221.22,3.6794]
[1734274921466,2.2598,221.36,221.29,2.2603]
[1734274922000,2.2598,221.36,221.22,3.6794]
[1734274922200,2.2598,221.36,221.23,5.17630502]
[1734274922398,2.2598,221.36,221.24,5.17630502]
[1734274922590,2.22,221.38,221.25,5.17630502]
[1734274922819,2.22,221.38,221.22,1.4594]
[1734274923012,2.22,221.38,221.23,5.17805551]
[1734274923192,2.2603,221.3,221.25,2.2607]
[1734274923397,2.22,221.29,221.25,2.2607]
[1734274926705,2.22,221.29,221.2,1.5504]
[1734274926900,2.22,221.29,221.17,1.4341]
[1734274927100,2.2607,221.26,221.21,2.2611]
[1734274928306,2.2607,221.26,221.2,2.2613]
[1734274929499,2.22,221.29,221.12,2.8431]
[1734274929803,4.5322,221.28,221.18,2.2614]
[1734274930397,2.2609,221.24,221.18,2.2614]
[1734274930593,2.22,221.23,221.18,2.2614]
[1734274931216,2.22,221.23,221.16,2.2616]
[1734274931507,2.22,221.23,221.12,1.3983]
[1734274931706,2.22,221.23,221.13,1.933104]
[1734274931921,2.22,221.23,221.05,1.4104]
[1734274932207,2.22,221.23,221.06,5.18940523]
[1734274932403,2.22,221.23,221.11,2.2622]
[1734274933301,2.2616,221.17,221.11,2.2622]
[1734274933499,2.22,221.16,221.11,2.2622]
[1734274934718,2.22,221.17,221.1,5.32659714]
[1734274935117,2.22,221.19,221.11,3.25003423]
[1734274935296,2.22,221.19,221.12,6.15900519]
[1734274935498,2.22,221.19,221.12,2.9098]
[1734274936089,2.22,221.19,221.18,2.2615]
[1734274936286,2.22,221.23,221.13,1.4472]
[1734274936692,2.22,221.23,221.14,5.17678826]
[1734274936992,2.22,221.23,221.15,5.17678826]
[1734274937187,2.22,221.23,221.21,2.2612]
[1734274937490,2.22,221.25,221.13,1.4472]
[1734274937789,2.22,221.25,221.14,5.17564335]
[1734274937994,2.22,221.25,221.15,5.17564335]
[1734274938191,2.22,221.25,221.18,2.2614]
[1734274938500,2.22,221.25,221.19,5.17501825]
[1734274938694,2.22,221.25,221.2,3.24636477]
[1734274938996,2.22,221.25,221.16,2.22]
[1734274939191,2.22,221.25,221.24,2.2609]
[1734274939994,2.22,221.25,221.16,2.22]
[1734274940187,2.22,221.25,221.17,5.17626365]
[1734274940389,2.22,221.25,221.18,5.17626365]
[1734274940590,2.22,221.25,221.19,3.24711939]
[1734274940791,2.22,221.25,221.16,2.22]
[1734274940994,2.22,221.25,221.17,5.17852792]
[1734274941296,2.22,221.25,221.13,1.4472]
[1734274941542,2.22,221.25,221.14,5.18010807]
[1734274941828,2.22,221.25,221.15,5.18010807]
[1734274942020,2.22,221.25,221.16,5.18010807]
[1734274942226,2.22,221.25,221.22,2.2611]
[1734274944221,2.22,221.25,221.13,1.4472]
[1734274944420,2.22,221.25,221.2,2.2612]
[1734274945927,4.4808,221.25,221.18,2.2614]
[1734274946824,2.22,221.25,221.13,1.4472]
[1734274947023,2.261,221.23,221.13,1.4472]
[1734274947416,2.261,221.23,221.14,5.18163261]
[1734274947604,2.2611,221.22,221.15,1.93064627]
[1734274947813,2.22,221.25,221.14,1.93060154]
[1734274948006,1.4525,221.24,221.15,5.18165718]
[1734274948202,1.4525,221.24,221.14,1.93060154]
[1734274948429,2.2612,221.21,221.16,2.2617]
[1734274948629,2.2,221.2,221.16,2.2617]
[1734274949324,2.2614,221.19,221.14,4.19250154]
[1734274949826,2.2,221.2,221.14,1.93060154]
[1734274950136,4.4614,221.2,221.14,1.93060154]
[1734274951040,2.2,221.2,221.14,1.93060154]
[1734274951244,2.2,221.2,221.05,2.2]
[1734274951539,2.2,221.2,221.11,5.17913373]
[1734274951738,2.2,221.2,221.12,5.17913373]
[1734274951930,2.2,221.2,221.15,2.2617]
[1734274952458,2.2,221.2,221.06,3.6787]
[1734274952739,2.2,221.2,221.06,1.4787]
[1734274953232,2.2617,221.17,221.11,2.2622]
[1734274954333,2.2,221.2,221.04,2.2]
[1734274954545,2.2,221.2,221.09,2.2624]
[1734274955045,2.2,221.2,221.03,3.0212]
[1734274956229,2.2,221.2,221.06,5.48803809]
[1734274956536,2.2,221.2,221.06,2.2627]
[1734274956941,2.2623,221.11,221.05,2.2628]
[1734274957233,2.22,221.1,220.98,1.496]
[1734274957437,2.2623,221.11,220.99,6.70249703]
[1734274957634,2.2623,221.11,221.0,5.17559703]
[1734274957831,2.22,221.1,220.99,1.5269]
[1734274958130,2.22,221.1,221.0,5.17587127]
[1734274958323,2.22,221.1,221.05,5.41321568]
[1734274958643,51.74,221.22,221.05,5.41321568]
[1734274958824,2.22,221.21,221.05,5.41321568]
[1734274959321,5.43983627,221.2,221.05,5.41321568]
[1734274959719,2.2618,221.16,221.09,2.2624]
[1734274960017,2.22,221.15,221.05,5.41321568]
[1734274960214,2.22,221.14,221.06,3.2408793]
[1734274960516,2.22,221.13,221.05,5.41321568]
[1734274960722,2.22,221.12,221.05,5.41321568]
[1734274961417,5.43983627,221.2,221.05,5.41321568]
[1734274961619,2.22,221.19,221.05,5.41321568]
[1734274962415,2.2618,221.15,221.09,2.2623]
[1734274962619,2.22,221.14,221.09,2.2623]
[1734274962819,2.22,221.14,221.05,5.41321568]
[1734274963026,2.2623,221.11,221.05,5.41321568]
[1734274963724,2.2621,221.13,221.07,2.2626]
[1734274965221,2.2622,221.11,221.07,2.2626]
[1734274965622,2.22,221.14,221.07,2.2626]
[1734274965829,5.43983627,221.2,221.07,2.2626]
[1734274966027,2.2622,221.11,221.05,5.41321568]
[1734274966226,2.22,221.1,221.06,2.2627]
[1734274966624,2.22,221.09,221.06,2.2627]
[1734274969027,4.4824,221.09,221.03,1.5062]
[1734274970527,4.4824,221.09,220.99,1.5269]
[1734274971430,4.4824,221.09,221.03,7.7978675]
[1734274972830,2.2625,221.08,221.03,7.7978675]
[1734274973830,2.22,221.09,221.03,5.5348675]
[1734274974034,43.91459034,221.2,221.03,5.5348675]
[1734274974330,2.18,221.19,221.03,5.5348675]
[1734274974731,2.2621,221.12,221.07,2.2626]
[1734274974931,2.18,221.11,221.07,2.2626]
[1734274975131,2.18,221.1,221.03,5.5348675]
[1734274975436,4.4424,221.09,221.03,5.5348675]
[1734274975628,2.18,221.08,221.03,5.5348675]
[1734274975830,2.18,221.07,221.03,5.5348675]
[1734274976027,2.18,221.07,221.04,2.2629]
[1734274977733,2.18,221.08,221.03,5.5348675]
[1734274977934,43.91459034,221.2,221.03,5.5348675]
[1734274977935,2.18,221.1,221.03,5.5348675]
[1734274978231,2.18,221.1,221.09,2.2623]
[1734274978439,2.2619,221.14,221.09,2.2623]
[1734274978730,2.18,221.13,221.09,2.2623]
[1734274979127,4.442,221.13,221.09,2.2623]
[1734274979735,2.18,221.13,221.09,2.2623]
[1734274980130,2.18,221.13,221.1,2.2623]
[1734274980437,2.2619,221.14,221.03,5.5348675]
[1734274980632,2.18,221.13,221.03,5.5348675]
[1734274981332,2.18,221.13,221.08,2.2624]
[1734274981333,4.442,221.13,221.08,2.2624]
[1734274982430,2.2621,221.12,221.08,2.2624]
[1734274983546,4.442,221.13,221.08,2.2624]
[1734274984138,4.442,221.13,221.03,5.5348675]
[1734274984139,4.442,221.13,221.09,2.2624]
[1734274984334,2.18,221.13,221.03,5.5348675]
[1734274984546,2.18,221.13,221.04,1.93059261]
[1734274984743,2.18,221.13,221.03,5.5348675]
[1734274984943,2.18,221.13,221.04,5.17572262]
[1734274985137,2.18,221.13,221.03,5.5348675]
[1734274985343,2.18,221.13,221.04,5.17677514]
[1734274985644,4.4421,221.13,221.07,2.2625]
[1734274985941,2.18,221.13,221.07,2.2625]
[1734274986744,4.442,221.13,221.03,5.5348675]
[1734274987045,2.18,221.13,221.03,5.5348675]
[1734274988042,2.2621,221.12,221.07,2.2625]
[1734274989240,2.18,221.13,221.03,5.5348675]
[1734274989445,2.18,221.13,221.08,2.2625]
[1734274990347,4.442,221.13,221.08,2.2625]
[1734274990643,2.18,221.13,221.03,5.5348675]
[1734274991244,2.2625,221.09,221.04,2.2629]
[1734274991447,2.18,221.08,221.04,2.2629]
[1734274991645,2.18,221.07,221.04,2.2629]
[1734274995449,2.18,221.07,221.03,5.5348675]
[1734274995650,2.18,221.07,221.04,3.26392408]
[1734274995844,2.18,221.07,220.99,1.5269]
[1734274996046,2.18,221.07,221.0,5.20616444]
[1734274996243,2.18,221.07,221.01,5.20616444]
[1734274996442,2.2627,221.06,221.02,5.20616444]
[1734274996642,2.2627,221.06,221.03,5.20616444]
[1734274996847,2.18,221.07,221.04,3.26402893]
[1734274997042,2.2627,221.06,221.01,2.2632]
[1734274997249,2.2627,221.06,221.02,5.20909692]
[1734274997551,2.2627,221.06,221.03,3.2658471]
[1734274997752,2.18,221.07,220.99,7.0766885]
[1734274998051,2.18,221.07,221.0,5.21090895]
[1734274998254,2.18,221.07,221.01,5.21090895]
[1734274998450,2.2621,221.13,221.02,5.21090895]
[1734274998756,2.18,221.12,221.03,5.21090895]
[1734274998950,2.18,221.11,221.1,2.2623]
[1734274999344,2.18,221.11,220.99,7.0766885]
[1734274999550,2.18,221.11,221.0,5.20768862]
[1734274999765,2.18,221.11,221.01,5.20768862]
[1734275000052,4.4422,221.11,221.02,5.20766357]
[1734275000256,4.4422,221.11,220.99,7.0766885]
[1734275000257,4.4422,221.11,221.03,5.20766357]
[1734275000453,4.4422,221.11,221.04,5.20766357]
[1734275000653,4.4422,221.11,221.05,5.20766357]
[1734275000854,4.4422,221.11,221.06,5.20766357]
[1734275001051,2.2623,221.1,221.07,5.20766357]
[1734275001258,2.2623,221.1,221.03,2.2629]
[1734275001455,2.18,221.11,221.04,5.20944168]
[1734275001648,2.18,221.11,221.0,2.2633]
[1734275001849,2.18,221.11,221.01,5.21143371]
[1734275002054,2.18,221.11,221.02,5.21143371]
[1734275002258,2.18,221.11,221.03,5.21143371]
[1734275002457,2.2626,221.08,221.0,2.2633]